[Event "*** Titled Tuesday Blitz"]
[Site "Chess.com"]
[Date "2019.07.02"]
[Round "6"]
[White "MFBerna"]
[Black "LaughingTiger"]
[Result "1-0"]
[WhiteElo "2411"]
[BlackElo "2310"]
[TimeControl "180+2"]
[EndTime "14:19:21 PDT"]
[Termination "MFBerna won by checkmate"]

1. e4 {[%clk 0:03:01.9]} 1... c5 {[%clk 0:03:00.1]} 2. Nf3 {[%clk 0:03:03.2]}
2... e6 {[%clk 0:03:00.9]} 3. d4 {[%clk 0:03:05.1]} 3... cxd4 {[%clk 0:03:02.5]}
4. Nxd4 {[%clk 0:03:07]} 4... a6 {[%clk 0:03:04.1]} 5. Nc3 {[%clk 0:03:05.8]}
5... Qc7 {[%clk 0:03:05.2]} 6. g3 {[%clk 0:03:07]} 6... Nf6 {[%clk 0:03:02.9]}
7. Bg2 {[%clk 0:03:07.9]} 7... Bb4 {[%clk 0:03:02.7]} 8. O-O {[%clk 0:03:07.8]}
8... Bxc3 {[%clk 0:03:01.6]} 9. bxc3 {[%clk 0:03:09.7]} 9... Qxc3 {[%clk
0:03:02.8]} 10. Rb1 {[%clk 0:03:01.8]} 10... Nc6 {[%clk 0:03:01.7]} 11. Be3
{[%clk 0:02:53.2]} 11... O-O {[%clk 0:02:57.6]} 12. Rb3 {[%clk 0:02:43.8]} 12...
Qc4 {[%clk 0:02:55.5]} 13. f4 {[%clk 0:02:39.2]} 13... d5 {[%clk 0:02:54]} 14.
e5 {[%clk 0:02:28.8]} 14... Ne4 {[%clk 0:02:54.3]} 15. Qd3 {[%clk 0:02:14.8]}
15... Nc5 {[%clk 0:02:39]} 16. Qxc4 {[%clk 0:02:10]} 16... dxc4 {[%clk
0:02:40.9]} 17. Nxc6 {[%clk 0:01:40.2]} 17... cxb3 {[%clk 0:02:20.2]} 18. Ne7+
{[%clk 0:01:40.9]} 18... Kh8 {[%clk 0:02:20.7]} 19. Bxc5 {[%clk 0:01:41.3]}
19... Bd7 {[%clk 0:02:04.5]} 20. cxb3 {[%clk 0:01:32.5]} 20... Rab8 {[%clk
0:02:01.1]} 21. Bd6 {[%clk 0:01:33.4]} 21... Rbd8 {[%clk 0:01:57.9]} 22. Bxb7
{[%clk 0:01:31.8]} 22... Bb5 {[%clk 0:01:58.4]} 23. Rc1 {[%clk 0:01:31.5]} 23...
Rd7 {[%clk 0:01:54.4]} 24. Bf3 {[%clk 0:01:29.8]} 24... h6 {[%clk 0:01:53]} 25.
Ng6+ {[%clk 0:01:23.4]} 25... fxg6 {[%clk 0:01:52.3]} 26. Bxf8 {[%clk
0:01:25.3]} 26... Rd2 {[%clk 0:01:49.2]} 27. Rc7 {[%clk 0:01:21.6]} 27... Rxa2
{[%clk 0:01:43.6]} 28. Bxg7+ {[%clk 0:01:22.5]} 28... Kg8 {[%clk 0:01:45]} 29.
Bg4 {[%clk 0:01:19.6]} 29... Ra1+ {[%clk 0:01:44.4]} 30. Kf2 {[%clk 0:01:20.2]}
30... Ra2+ {[%clk 0:01:46.3]} 31. Ke3 {[%clk 0:01:20.9]} 31... Rxh2 {[%clk
0:01:46.5]} 32. Bxe6+ {[%clk 0:01:21.6]} 32... Kh7 {[%clk 0:01:46.5]} 33. Bf6+
{[%clk 0:01:23]} 33... Bd7 {[%clk 0:01:42.8]} 34. Rxd7# {[%clk 0:01:24.3]} 1-0

[Event "*** Titled Tuesday Blitz"]
[Site "Chess.com"]
[Date "2019.07.02"]
[Round "6"]
[White "VishnuPrasanna"]
[Black "Berardino"]
[Result "0-1"]
[WhiteElo "2786"]
[BlackElo "2541"]
[TimeControl "180+2"]
[EndTime "14:19:51 PDT"]
[Termination "Berardino won by resignation"]

1. d4 {[%clk 0:03:01.9]} 1... d5 {[%clk 0:02:58.1]} 2. c4 {[%clk 0:03:03.8]}
2... e6 {[%clk 0:02:59.2]} 3. Nf3 {[%clk 0:03:04.9]} 3... Nf6 {[%clk 0:03:00.2]}
4. g3 {[%clk 0:03:06.4]} 4... Be7 {[%clk 0:03:01.2]} 5. Qc2 {[%clk 0:03:07.2]}
5... O-O {[%clk 0:02:58.8]} 6. Nbd2 {[%clk 0:03:08.3]} 6... c5 {[%clk 0:02:59]}
7. dxc5 {[%clk 0:03:08]} 7... Na6 {[%clk 0:02:56.4]} 8. cxd5 {[%clk 0:03:08.3]}
8... Nxd5 {[%clk 0:02:40.8]} 9. Bg2 {[%clk 0:03:07.7]} 9... Nxc5 {[%clk
0:02:38.5]} 10. O-O {[%clk 0:03:08.2]} 10... Bd7 {[%clk 0:02:35.1]} 11. Ne5
{[%clk 0:03:03.7]} 11... Rc8 {[%clk 0:02:33.8]} 12. Nxd7 {[%clk 0:03:04.3]}
12... Qxd7 {[%clk 0:02:30.7]} 13. Nf3 {[%clk 0:03:05.3]} 13... Bf6 {[%clk
0:01:55]} 14. Ng5 {[%clk 0:02:40.3]} 14... g6 {[%clk 0:01:47.2]} 15. Ne4 {[%clk
0:02:41.3]} 15... Nxe4 {[%clk 0:01:46.8]} 16. Qxe4 {[%clk 0:02:43.2]} 16... Bg7
{[%clk 0:01:23.2]} 17. Rd1 {[%clk 0:02:42]} 17... Qb5 {[%clk 0:01:23.2]} 18. a4
{[%clk 0:02:38.5]} 18... Qa6 {[%clk 0:01:04.3]} 19. Qd3 {[%clk 0:02:34.5]} 19...
Qxd3 {[%clk 0:00:54.1]} 20. Rxd3 {[%clk 0:02:35.5]} 20... Nb4 {[%clk 0:00:55.7]}
21. Rb3 {[%clk 0:02:35.8]} 21... Nc2 {[%clk 0:00:55.4]} 22. Rb1 {[%clk 0:02:33]}
22... Nd4 {[%clk 0:00:56.3]} 23. Re3 {[%clk 0:02:33.7]} 23... Rc2 {[%clk
0:00:54.8]} 24. Bxb7 {[%clk 0:02:16.3]} 24... Nxe2+ {[%clk 0:00:54.4]} 25. Rxe2
{[%clk 0:02:16.6]} 25... Rxe2 {[%clk 0:00:56.3]} 26. Ba6 {[%clk 0:01:59.1]}
26... Re1+ {[%clk 0:00:50.3]} 27. Kg2 {[%clk 0:01:59.5]} 27... Rd8 {[%clk
0:00:50.3]} 0-1

[Event "*** Titled Tuesday Blitz"]
[Site "Chess.com"]
[Date "2019.07.02"]
[Round "6"]
[White "STARMATEcc"]
[Black "colegiodemadrid"]
[Result "1-0"]
[WhiteElo "2555"]
[BlackElo "2444"]
[TimeControl "180+2"]
[EndTime "14:19:58 PDT"]
[Termination "STARMATEcc won by checkmate"]

1. e4 {[%clk 0:03:01.8]} 1... c5 {[%clk 0:02:59.8]} 2. Nf3 {[%clk 0:02:52.7]}
2... d6 {[%clk 0:03:00.6]} 3. d4 {[%clk 0:02:53.9]} 3... cxd4 {[%clk 0:03:02.2]}
4. Nxd4 {[%clk 0:02:55.8]} 4... Nf6 {[%clk 0:03:03.6]} 5. Nc3 {[%clk 0:02:57.6]}
5... a6 {[%clk 0:03:05.1]} 6. Bg5 {[%clk 0:02:59.2]} 6... e6 {[%clk 0:03:05.5]}
7. Qf3 {[%clk 0:03:00.9]} 7... h6 {[%clk 0:03:01.7]} 8. Be3 {[%clk 0:02:54.5]}
8... e5 {[%clk 0:02:50.9]} 9. Nde2 {[%clk 0:02:33]} 9... Nc6 {[%clk 0:02:42.1]}
10. O-O-O {[%clk 0:02:33.6]} 10... Be6 {[%clk 0:02:41.7]} 11. Rg1 {[%clk
0:02:27.8]} 11... Qa5 {[%clk 0:02:41]} 12. Kb1 {[%clk 0:02:23.1]} 12... b5
{[%clk 0:02:40.7]} 13. g4 {[%clk 0:02:19.7]} 13... Rb8 {[%clk 0:02:13.4]} 14. h4
{[%clk 0:02:09]} 14... b4 {[%clk 0:02:05.4]} 15. Nd5 {[%clk 0:02:09]} 15... b3
{[%clk 0:02:06.5]} 16. axb3 {[%clk 0:01:59.9]} 16... Bxd5 {[%clk 0:01:50]} 17.
exd5 {[%clk 0:02:01.8]} 17... Nb4 {[%clk 0:01:51.1]} 18. Nc3 {[%clk 0:01:59.6]}
18... Rc8 {[%clk 0:01:51.9]} 19. Bc4 {[%clk 0:02:00.2]} 19... Be7 {[%clk
0:01:47.6]} 20. g5 {[%clk 0:01:58.9]} 20... hxg5 {[%clk 0:01:48.2]} 21. hxg5
{[%clk 0:01:59.4]} 21... Nd7 {[%clk 0:01:49.4]} 22. g6 {[%clk 0:01:58.5]} 22...
f6 {[%clk 0:01:48.8]} 23. Qf5 {[%clk 0:01:52]} 23... Rh4 {[%clk 0:01:25.4]} 24.
Rh1 {[%clk 0:01:46.4]} 24... Rcxc4 {[%clk 0:01:22.2]} 25. bxc4 {[%clk 0:01:21]}
25... Rxc4 {[%clk 0:01:24.1]} 26. Rh8+ {[%clk 0:01:13.4]} 26... Nf8 {[%clk
0:01:25.1]} 27. Qe6 {[%clk 0:00:52.1]} 27... Rxc3 {[%clk 0:01:26]} 28. Rxf8+
{[%clk 0:00:49.1]} 28... Kxf8 {[%clk 0:01:26.5]} 29. Qf7# {[%clk 0:00:51]} 1-0

[Event "*** Titled Tuesday Blitz"]
[Site "Chess.com"]
[Date "2019.07.02"]
[Round "6"]
[White "pedromartinez91"]
[Black "Saitama_Hero"]
[Result "1-0"]
[WhiteElo "2426"]
[BlackElo "2249"]
[TimeControl "180+2"]
[EndTime "14:20:01 PDT"]
[Termination "pedromartinez91 won by resignation"]

1. e4 {[%clk 0:03:01.9]} 1... d6 {[%clk 0:03:00.1]} 2. d4 {[%clk 0:03:02.7]}
2... Nf6 {[%clk 0:03:02]} 3. Nc3 {[%clk 0:03:03.9]} 3... c6 {[%clk 0:03:03.9]}
4. Nf3 {[%clk 0:03:04.9]} 4... Bg4 {[%clk 0:03:04.8]} 5. h3 {[%clk 0:03:05.8]}
5... Bh5 {[%clk 0:03:04.1]} 6. g4 {[%clk 0:03:06.9]} 6... Bg6 {[%clk 0:03:04.2]}
7. Bd3 {[%clk 0:03:08.8]} 7... e6 {[%clk 0:03:05.6]} 8. Nh4 {[%clk 0:03:09.6]}
8... Be7 {[%clk 0:03:03.9]} 9. Nxg6 {[%clk 0:03:10.4]} 9... hxg6 {[%clk
0:03:04.2]} 10. Be3 {[%clk 0:03:12.2]} 10... d5 {[%clk 0:03:02.9]} 11. e5 {[%clk
0:03:13.3]} 11... Nfd7 {[%clk 0:03:04.4]} 12. Qe2 {[%clk 0:03:14.1]} 12... c5
{[%clk 0:03:01.1]} 13. dxc5 {[%clk 0:03:15.1]} 13... Nc6 {[%clk 0:03:01.1]} 14.
Nb5 {[%clk 0:03:13.5]} 14... Nxc5 {[%clk 0:02:57.3]} 15. f4 {[%clk 0:03:10.8]}
15... Bh4+ {[%clk 0:02:09.9]} 16. Kf1 {[%clk 0:03:08.3]} 16... d4 {[%clk
0:01:54.9]} 17. Nd6+ {[%clk 0:03:05.9]} 17... Kf8 {[%clk 0:01:55.3]} 18. Bd2
{[%clk 0:03:07]} 18... Be7 {[%clk 0:01:52.4]} 19. Ne4 {[%clk 0:03:07.9]} 19...
Qd5 {[%clk 0:01:48.3]} 20. a3 {[%clk 0:03:07.6]} 20... Kg8 {[%clk 0:01:46.3]}
21. Kg1 {[%clk 0:03:06.2]} 21... g5 {[%clk 0:01:41.2]} 22. Nxc5 {[%clk
0:03:06.7]} 22... Bxc5 {[%clk 0:01:41]} 23. Be4 {[%clk 0:02:59.9]} 23... Qd7
{[%clk 0:01:24.9]} 24. Kg2 {[%clk 0:02:57.9]} 24... gxf4 {[%clk 0:01:16.6]} 25.
Bxf4 {[%clk 0:02:59.8]} 25... Rf8 {[%clk 0:01:12.3]} 26. h4 {[%clk 0:03:00.5]}
26... f6 {[%clk 0:01:12]} 27. exf6 {[%clk 0:03:01.2]} 27... gxf6 {[%clk
0:01:04.5]} 28. Raf1 {[%clk 0:03:00.6]} 28... Ne7 {[%clk 0:00:42.6]} 29. Qc4
{[%clk 0:03:01.1]} 29... Rc8 {[%clk 0:00:28.7]} 30. Bd3 {[%clk 0:02:56.7]} 30...
Kg7 {[%clk 0:00:27.5]} 31. g5 {[%clk 0:02:53.8]} 31... Rhf8 {[%clk 0:00:21.6]}
32. gxf6+ {[%clk 0:02:54.5]} 32... Rxf6 {[%clk 0:00:23.5]} 33. Be5 {[%clk
0:02:55.2]} 33... Ng8 {[%clk 0:00:20.1]} 34. Kh3 {[%clk 0:02:42.7]} 34... Bb6
{[%clk 0:00:14.6]} 35. Rhg1+ {[%clk 0:02:43.4]} 35... Kh8 {[%clk 0:00:13.2]} 36.
Rxg8+ {[%clk 0:02:42.8]} 36... Rxg8 {[%clk 0:00:13.6]} 37. Bxf6+ {[%clk
0:02:43.6]} 1-0

[Event "*** Titled Tuesday Blitz"]
[Site "Chess.com"]
[Date "2019.07.02"]
[Round "6"]
[White "BlueWizzard"]
[Black "NM2019"]
[Result "1-0"]
[WhiteElo "2704"]
[BlackElo "2132"]
[TimeControl "180+2"]
[EndTime "14:20:09 PDT"]
[Termination "BlueWizzard won by resignation"]

1. d4 {[%clk 0:03:01.9]} 1... e6 {[%clk 0:03:00.5]} 2. Nf3 {[%clk 0:03:03.4]}
2... f5 {[%clk 0:03:01.9]} 3. Bg5 {[%clk 0:03:02.3]} 3... Be7 {[%clk 0:03:02.5]}
4. h4 {[%clk 0:03:02.5]} 4... b6 {[%clk 0:03:00]} 5. Nbd2 {[%clk 0:03:02.9]}
5... Bb7 {[%clk 0:03:00.9]} 6. c4 {[%clk 0:03:03.8]} 6... Nf6 {[%clk 0:03:01.9]}
7. Bxf6 {[%clk 0:03:03.8]} 7... Bxf6 {[%clk 0:03:02.7]} 8. e3 {[%clk 0:03:05.7]}
8... d6 {[%clk 0:03:01.6]} 9. Bd3 {[%clk 0:03:04.2]} 9... Nd7 {[%clk 0:03:02.2]}
10. d5 {[%clk 0:03:02.2]} 10... Nc5 {[%clk 0:02:58]} 11. Bc2 {[%clk 0:03:00.6]}
11... exd5 {[%clk 0:02:57]} 12. Bxf5 {[%clk 0:02:59.6]} 12... Bxb2 {[%clk
0:02:52.6]} 13. Rb1 {[%clk 0:02:59.7]} 13... Bf6 {[%clk 0:02:50.5]} 14. Qc2
{[%clk 0:02:59.5]} 14... g6 {[%clk 0:02:30.5]} 15. Bg4 {[%clk 0:03:00.1]} 15...
Qe7 {[%clk 0:02:20.7]} 16. h5 {[%clk 0:02:44.3]} 16... g5 {[%clk 0:02:17.7]} 17.
O-O {[%clk 0:02:44.6]} 17... dxc4 {[%clk 0:01:57.6]} 18. Qxc4 {[%clk 0:02:35.1]}
18... Bc6 {[%clk 0:01:38.8]} 19. Nd4 {[%clk 0:02:35.1]} 19... Bd7 {[%clk
0:01:37.6]} 20. Qd5 {[%clk 0:02:30.7]} 20... Rb8 {[%clk 0:01:24.9]} 21. Bxd7+
{[%clk 0:02:24.3]} 21... Qxd7 {[%clk 0:01:25.3]} 22. f4 {[%clk 0:02:13.2]} 22...
Bxd4 {[%clk 0:01:22.7]} 23. exd4 {[%clk 0:02:13]} 23... g4 {[%clk 0:01:14.8]}
24. dxc5 {[%clk 0:02:12.2]} 24... dxc5 {[%clk 0:01:11.5]} 25. Qe5+ {[%clk
0:02:11.8]} 25... Kf7 {[%clk 0:01:11.2]} 26. Ne4 {[%clk 0:02:12.1]} 26... Qd4+
{[%clk 0:01:11.3]} 27. Kh2 {[%clk 0:02:11.7]} 27... Qxe5 {[%clk 0:01:11.9]} 28.
fxe5+ {[%clk 0:02:12.9]} 28... Ke6 {[%clk 0:01:12.6]} 29. Ng5+ {[%clk
0:02:12.6]} 29... Kd5 {[%clk 0:01:06.9]} 30. Rbd1+ {[%clk 0:02:08.4]} 30... Kc6
{[%clk 0:01:07.2]} 31. Rf6+ {[%clk 0:02:06.4]} 31... Kb5 {[%clk 0:01:07.7]} 32.
Rf7 {[%clk 0:02:02.7]} 32... Rbc8 {[%clk 0:01:01.9]} 33. e6 {[%clk 0:02:01.1]}
33... h6 {[%clk 0:01:01.1]} 34. Nh7 {[%clk 0:01:54.7]} 34... c4 {[%clk
0:00:57.5]} 35. e7 {[%clk 0:01:50.5]} 35... Rce8 {[%clk 0:00:57.8]} 36. Nf6
{[%clk 0:01:51]} 1-0

[Event "*** Titled Tuesday Blitz"]
[Site "Chess.com"]
[Date "2019.07.02"]
[Round "6"]
[White "jk13"]
[Black "CookiesAndIceCream"]
[Result "1-0"]
[WhiteElo "2589"]
[BlackElo "2363"]
[TimeControl "180+2"]
[EndTime "14:20:18 PDT"]
[Termination "jk13 won by resignation"]

1. e4 {[%clk 0:03:01.9]} 1... e6 {[%clk 0:03:00.9]} 2. d4 {[%clk 0:03:02.1]}
2... d5 {[%clk 0:03:02.2]} 3. e5 {[%clk 0:03:03.7]} 3... c5 {[%clk 0:03:02.5]}
4. Nf3 {[%clk 0:03:05.6]} 4... Nc6 {[%clk 0:03:00]} 5. Bd3 {[%clk 0:03:07.2]}
5... cxd4 {[%clk 0:02:59.4]} 6. O-O {[%clk 0:03:08.7]} 6... Nge7 {[%clk
0:02:57.7]} 7. Bf4 {[%clk 0:03:09.6]} 7... Ng6 {[%clk 0:02:51.4]} 8. Bg3 {[%clk
0:03:09.6]} 8... Qb6 {[%clk 0:02:52.4]} 9. Nbd2 {[%clk 0:03:10]} 9... Be7 {[%clk
0:02:46.2]} 10. Nb3 {[%clk 0:03:10.8]} 10... Bd7 {[%clk 0:02:43.7]} 11. Re1
{[%clk 0:03:10.3]} 11... O-O {[%clk 0:02:41.8]} 12. h4 {[%clk 0:03:11.1]} 12...
f5 {[%clk 0:02:29.7]} 13. h5 {[%clk 0:02:57.6]} 13... Nh8 {[%clk 0:02:28.3]} 14.
Bf4 {[%clk 0:02:52.1]} 14... Nf7 {[%clk 0:02:20]} 15. a4 {[%clk 0:02:39.2]}
15... a5 {[%clk 0:02:15.1]} 16. Bb5 {[%clk 0:02:18.2]} 16... Rfd8 {[%clk
0:01:59.5]} 17. Nfxd4 {[%clk 0:02:05.9]} 17... Nxd4 {[%clk 0:01:53.4]} 18. Qxd4
{[%clk 0:02:03]} 18... Qxd4 {[%clk 0:01:47.2]} 19. Nxd4 {[%clk 0:02:03.9]} 19...
Rac8 {[%clk 0:01:47.4]} 20. c3 {[%clk 0:01:52.4]} 20... Bg5 {[%clk 0:01:10.5]}
21. Bxd7 {[%clk 0:01:45.7]} 21... Rxd7 {[%clk 0:01:05.8]} 22. Nxe6 {[%clk
0:01:46.5]} 22... Bxf4 {[%clk 0:01:04.4]} 23. Nxf4 {[%clk 0:01:48.4]} 23... Re7
{[%clk 0:01:00.9]} 24. Nxd5 {[%clk 0:01:44.3]} 24... Re6 {[%clk 0:00:54.3]} 25.
f4 {[%clk 0:01:43.4]} 25... Rc4 {[%clk 0:00:48.1]} 26. b3 {[%clk 0:01:43.6]}
26... Rc5 {[%clk 0:00:45.9]} 27. c4 {[%clk 0:01:44.7]} 27... Nd8 {[%clk
0:00:43.1]} 28. Rad1 {[%clk 0:01:39.1]} 28... Nc6 {[%clk 0:00:43.3]} 29. Ne3
{[%clk 0:01:33.3]} 29... g6 {[%clk 0:00:41.8]} 30. h6 {[%clk 0:01:29.4]} 30...
Nb4 {[%clk 0:00:39.7]} 31. Rd7 {[%clk 0:01:24.6]} 31... b6 {[%clk 0:00:36.6]}
32. Red1 {[%clk 0:01:24.5]} 1-0

[Event "*** Titled Tuesday Blitz"]
[Site "Chess.com"]
[Date "2019.07.02"]
[Round "6"]
[White "ethylalcohol"]
[Black "bluejay1897"]
[Result "1/2-1/2"]
[WhiteElo "2092"]
[BlackElo "2238"]
[TimeControl "180+2"]
[EndTime "14:20:23 PDT"]
[Termination "Game drawn by repetition"]

1. d4 {[%clk 0:03:01.9]} 1... Nf6 {[%clk 0:02:55.8]} 2. Nf3 {[%clk 0:03:02.4]}
2... e6 {[%clk 0:02:56.9]} 3. Bf4 {[%clk 0:03:02.8]} 3... c5 {[%clk 0:02:57.2]}
4. c3 {[%clk 0:02:58.1]} 4... Be7 {[%clk 0:02:55.8]} 5. e3 {[%clk 0:02:57.1]}
5... O-O {[%clk 0:02:56.5]} 6. Bd3 {[%clk 0:02:50.9]} 6... b6 {[%clk 0:02:57.3]}
7. h3 {[%clk 0:02:47]} 7... Bb7 {[%clk 0:02:58]} 8. Nbd2 {[%clk 0:02:44.4]} 8...
d6 {[%clk 0:02:55.2]} 9. O-O {[%clk 0:02:37.4]} 9... Nbd7 {[%clk 0:02:55.7]} 10.
Nc4 {[%clk 0:02:22.6]} 10... Qc7 {[%clk 0:02:55.8]} 11. a4 {[%clk 0:02:10.2]}
11... a6 {[%clk 0:02:41.7]} 12. Qe2 {[%clk 0:01:57.9]} 12... b5 {[%clk
0:02:37.8]} 13. axb5 {[%clk 0:01:57.1]} 13... axb5 {[%clk 0:02:39.7]} 14. Na3
{[%clk 0:01:56.2]} 14... c4 {[%clk 0:02:37.6]} 15. Nxb5 {[%clk 0:01:54.8]} 15...
cxd3 {[%clk 0:02:38.7]} 16. Qxd3 {[%clk 0:01:50.7]} 16... Qb6 {[%clk 0:02:36.3]}
17. c4 {[%clk 0:01:38.5]} 17... Bxf3 {[%clk 0:02:28.8]} 18. gxf3 {[%clk
0:01:38.1]} 18... e5 {[%clk 0:02:30.2]} 19. Bg5 {[%clk 0:01:32.5]} 19... Qc6
{[%clk 0:02:18]} 20. Kg2 {[%clk 0:01:17.7]} 20... h6 {[%clk 0:02:16.8]} 21. Bh4
{[%clk 0:01:16]} 21... e4 {[%clk 0:02:12.8]} 22. fxe4 {[%clk 0:01:10.8]} 22...
g5 {[%clk 0:02:13.2]} 23. d5 {[%clk 0:01:04.3]} 23... Qb6 {[%clk 0:02:13]} 24.
Bg3 {[%clk 0:01:04.3]} 24... Nc5 {[%clk 0:02:14.2]} 25. Qd4 {[%clk 0:00:57.9]}
25... Qb7 {[%clk 0:02:08]} 26. Nxd6 {[%clk 0:00:53.5]} 26... Bxd6 {[%clk
0:02:07.4]} 27. Bxd6 {[%clk 0:00:53.6]} 27... Ncxe4 {[%clk 0:02:06.4]} 28. Bxf8
{[%clk 0:00:51.6]} 28... Rxf8 {[%clk 0:01:59.3]} 29. Ra7 {[%clk 0:00:48.9]}
29... Qb3 {[%clk 0:01:55.8]} 30. f3 {[%clk 0:00:41.9]} 30... Qc2+ {[%clk
0:01:56.3]} 31. Kg1 {[%clk 0:00:37.5]} 31... Ng3 {[%clk 0:01:52.4]} 32. Qxf6
{[%clk 0:00:29.7]} 32... Ne2+ {[%clk 0:01:52.8]} 33. Kh1 {[%clk 0:00:20.5]}
33... Ng3+ {[%clk 0:01:53.1]} 34. Kg1 {[%clk 0:00:21.5]} 34... Ne2+ {[%clk
0:01:54.3]} 35. Kh1 {[%clk 0:00:22.4]} 35... Ng3+ {[%clk 0:01:55.5]} 36. Kg1
{[%clk 0:00:23.5]} 1/2-1/2

[Event "*** Titled Tuesday Blitz"]
[Site "Chess.com"]
[Date "2019.07.02"]
[Round "6"]
[White "KhazarBabazada"]
[Black "maximnovik"]
[Result "0-1"]
[WhiteElo "2640"]
[BlackElo "2476"]
[TimeControl "180+2"]
[EndTime "14:20:33 PDT"]
[Termination "maximnovik won by resignation"]

1. e4 {[%clk 0:03:00]} 1... c5 {[%clk 0:02:59.1]} 2. Nf3 {[%clk 0:03:01.1]} 2...
e6 {[%clk 0:03:00.2]} 3. d4 {[%clk 0:03:01.9]} 3... cxd4 {[%clk 0:03:01.6]} 4.
Nxd4 {[%clk 0:03:03.8]} 4... a6 {[%clk 0:03:02.9]} 5. Bd3 {[%clk 0:03:02.6]}
5... Nf6 {[%clk 0:03:02.5]} 6. O-O {[%clk 0:03:02]} 6... Qc7 {[%clk 0:03:03.7]}
7. Qe2 {[%clk 0:02:59.9]} 7... d6 {[%clk 0:03:03.5]} 8. c4 {[%clk 0:03:00.2]}
8... g6 {[%clk 0:03:03.1]} 9. b3 {[%clk 0:03:01.1]} 9... Bg7 {[%clk 0:03:03.9]}
10. Bb2 {[%clk 0:03:02.4]} 10... Nbd7 {[%clk 0:03:03.2]} 11. Nc3 {[%clk
0:03:02.9]} 11... O-O {[%clk 0:03:04]} 12. Rad1 {[%clk 0:03:03.1]} 12... b6
{[%clk 0:03:01.1]} 13. Kh1 {[%clk 0:03:04.3]} 13... Bb7 {[%clk 0:03:01.8]} 14.
f4 {[%clk 0:03:05.3]} 14... Rfe8 {[%clk 0:02:55.2]} 15. Bb1 {[%clk 0:03:01.8]}
15... Rac8 {[%clk 0:02:48]} 16. Nf3 {[%clk 0:03:02.3]} 16... Nh5 {[%clk
0:02:36.2]} 17. Ng5 {[%clk 0:02:33.6]} 17... b5 {[%clk 0:02:33.6]} 18. e5 {[%clk
0:01:57.2]} 18... dxe5 {[%clk 0:02:16.9]} 19. Nce4 {[%clk 0:01:39.9]} 19... Nxf4
{[%clk 0:02:12.4]} 20. Rxf4 {[%clk 0:01:35.6]} 20... exf4 {[%clk 0:02:13.1]} 21.
Bxg7 {[%clk 0:01:36.3]} 21... Kxg7 {[%clk 0:02:13.9]} 22. Nd6 {[%clk 0:01:33]}
22... Re7 {[%clk 0:01:44.9]} 23. Ndxf7 {[%clk 0:01:06.2]} 23... e5 {[%clk
0:01:32.4]} 24. Nd6 {[%clk 0:00:59.9]} 24... Rf8 {[%clk 0:01:25.5]} 25. Nxh7
{[%clk 0:00:58]} 25... f3 {[%clk 0:01:19]} 26. Qd3 {[%clk 0:00:28.8]} 26...
fxg2+ {[%clk 0:01:16.6]} 27. Kg1 {[%clk 0:00:29.5]} 27... Qc5+ {[%clk
0:01:15.4]} 0-1

[Event "*** Titled Tuesday Blitz"]
[Site "Chess.com"]
[Date "2019.07.02"]
[Round "6"]
[White "rasmussvane"]
[Black "ram1zan"]
[Result "1-0"]
[WhiteElo "2895"]
[BlackElo "2780"]
[TimeControl "180+2"]
[EndTime "14:20:38 PDT"]
[Termination "rasmussvane won by resignation"]

1. Nf3 {[%clk 0:03:01.9]} 1... d5 {[%clk 0:02:53.1]} 2. g3 {[%clk 0:03:02]} 2...
Nf6 {[%clk 0:02:53.7]} 3. Bg2 {[%clk 0:03:03.2]} 3... Bf5 {[%clk 0:02:49.7]} 4.
O-O {[%clk 0:03:04.1]} 4... e6 {[%clk 0:02:51.2]} 5. c4 {[%clk 0:03:05.4]} 5...
c6 {[%clk 0:02:50.5]} 6. cxd5 {[%clk 0:03:06.8]} 6... cxd5 {[%clk 0:02:49]} 7.
Qb3 {[%clk 0:03:07.3]} 7... Qb6 {[%clk 0:02:49.7]} 8. Qxb6 {[%clk 0:03:08.5]}
8... axb6 {[%clk 0:02:51]} 9. Nc3 {[%clk 0:03:10]} 9... Nc6 {[%clk 0:02:49.3]}
10. d3 {[%clk 0:03:11.5]} 10... Bc5 {[%clk 0:02:48.2]} 11. Nh4 {[%clk
0:03:12.6]} 11... Bg4 {[%clk 0:02:48.5]} 12. h3 {[%clk 0:03:10.7]} 12... Bh5
{[%clk 0:02:49.9]} 13. g4 {[%clk 0:03:11.8]} 13... Bg6 {[%clk 0:02:51.5]} 14.
Bd2 {[%clk 0:03:11.3]} 14... Ke7 {[%clk 0:02:41.6]} 15. Kh1 {[%clk 0:03:01.7]}
15... h5 {[%clk 0:02:32]} 16. g5 {[%clk 0:02:57.3]} 16... Ng4 {[%clk 0:02:33.1]}
17. Nxg6+ {[%clk 0:02:52.4]} 17... fxg6 {[%clk 0:02:35]} 18. hxg4 {[%clk
0:02:53]} 18... hxg4+ {[%clk 0:02:34.8]} 19. Kg1 {[%clk 0:02:54.4]} 19... g3
{[%clk 0:02:24.5]} 20. e3 {[%clk 0:02:49.1]} 20... gxf2+ {[%clk 0:02:12.5]} 21.
Rxf2 {[%clk 0:02:35.6]} 21... d4 {[%clk 0:02:13.5]} 22. Nd1 {[%clk 0:02:32]}
22... Ne5 {[%clk 0:02:13.3]} 23. exd4 {[%clk 0:02:02.7]} 23... Bxd4 {[%clk
0:02:08.8]} 24. Be3 {[%clk 0:02:03.6]} 24... Rad8 {[%clk 0:02:04.5]} 25. Be4
{[%clk 0:01:55.7]} 25... Rh3 {[%clk 0:01:50.4]} 26. Bxd4 {[%clk 0:01:49.8]}
26... Rxd4 {[%clk 0:01:52.3]} 27. Nc3 {[%clk 0:01:37.3]} 27... Nxd3 {[%clk
0:01:32.7]} 28. Bxd3 {[%clk 0:01:36.6]} 28... Rhxd3 {[%clk 0:01:27.2]} 29. Rg2
{[%clk 0:01:01.6]} 29... Rd2 {[%clk 0:01:16.7]} 30. Re1 {[%clk 0:00:56]} 30...
Rxg2+ {[%clk 0:01:13.9]} 31. Kxg2 {[%clk 0:00:57.9]} 31... Rg4+ {[%clk
0:01:15.7]} 32. Kf3 {[%clk 0:00:59.4]} 32... Rxg5 {[%clk 0:01:17.6]} 33. Re4
{[%clk 0:01:00.9]} 33... Rf5+ {[%clk 0:01:16.5]} 34. Ke3 {[%clk 0:01:00.6]}
34... Rh5 {[%clk 0:01:16.4]} 35. Rb4 {[%clk 0:01:00.7]} 35... Rh3+ {[%clk
0:01:16.2]} 36. Kf2 {[%clk 0:01:01]} 1-0